Cogmind - Beta 14 @@@ ROGUE MODE // 2024.10.18 @ 16:49:23 Player: Enathri Result: Destroyed by G-47 Trooper with Particle Gun Performance ------------- Evolutions (0) 0 Regions Visited (4) 800 Robots Destroyed (10) 50 Value Destroyed (216) 216 Prototype IDs (0) 0 Alien Tech Used (0) 0 Bonus (0) 0 TOTAL SCORE: 1066 Bonus ------- None Cogmind --------- Core Integrity 0/250 Matter 222/300 Energy 98/100 System Corruption 17% Temperature Cool (10) Movement Walking (120) Location -9/Mines Parts ------- > --- POWER (1) -------- (None) > --- PROPULSION (2) --- Aluminum Leg > --- UTILITY (2) ------ (None) > --- WEAPON (2) ------- Small Laser Small Laser > --- INVENTORY (5) ---- Light Ion Engine Peak State ------------ > --- POWER ------------ Ion Engine > --- PROPULSION ------- Aluminum Leg Aluminum Leg > --- UTILITY ---------- (None) > --- WEAPON ----------- Assault Rifle Rocket Launcher > --- INVENTORY -------- Light Ion Engine Flight Unit Small Laser Small Laser [Rating: 6] Favorites ----------- Power Ion Engine Engine Ion Engine Propulsion Aluminum Leg Leg Aluminum Leg Flight Unit Flight Unit Utility Seismic Detector Device Seismic Detector Weapon Small Laser Energy Gun Small Laser Ballistic Gun Assault Rifle Launcher Rocket Launcher Build | -11 -10 -10 -10 -9 ------- Run | Yrd Mat Min Exi Min Slots Evolved . | . . . . . Power . | . . . . . Propulsion . | . . . . . Utility . | . . . . . Weapon . | . . . . . Parts Attached 14 | 5 . 1 . 8 Power 3 | 1 . . . 2 Engine 3 | 1 . . . 2 Core . | . . . . . Reactor . | . . . . . Propulsion 4 | 2 . . . 2 Treads . | . . . . . Leg 3 | 2 . . . 1 Wheel . | . . . . . Hover . | . . . . . Flight 1 | . . . . 1 Utility 1 | . . . . 1 Device 1 | . . . . 1 Storage . | . . . . . Processor . | . . . . . Hackware . | . . . . . Protection . | . . . . . Artifact . | . . . . . Weapon 6 | 2 . 1 . 3 Energy Gun 4 | 1 . . . 3 Energy Cannon . | . . . . . Ballistic Gun 1 | 1 . . . . Ballistic Cannon . | . . . . . Launcher 1 | . . 1 . . Special Weapon . | . . . . . Impact Weapon . | . . . . . Slashing Weapon . | . . . . . Piercing Weapon . | . . . . . Special Melee Weapon . | . . . . . Unidentified Prototypes . | . . . . . Parts Lost 10 | . . . . 10 Power 3 | . . . . 3 Propulsion 3 | . . . . 3 Utility 1 | . . . . 1 Weapon 3 | . . . . 3 Highest Loss Streak 7 | . . . . 7 To Critical Strikes . | . . . . . Average Slot Usage (%) 66 | . 71 71 71 58 Engine 13 | . 14 14 14 12 Leg 22 | . 28 28 28 15 Device 1 | . . . . 3 Energy Gun 12 | . 14 10 . 15 Ballistic Gun 10 | . 14 14 14 4 Launcher 4 | . . 3 14 5 Peak Build Rating 6 | 5 5 6 6 6 Average Rating 4 | 3 5 5 6 4 On Entrance 4 | . 5 5 6 6 Naked Turns . | . . . . . Heaviest Build 11 | 8 8 11 11 11 Greatest Support 20 | 20 20 20 20 20 Greatest Overweight (x) 1 | . . . . 1 Average Overweight (x) . | . . . . . Largest Inventory Capacity 5 | 5 5 5 5 5 Average Capacity 5 | 5 5 5 5 5 Most Carried 5 | 2 2 4 4 5 Average Carried 2 | 1 2 2 4 2 Final Capacity 5 | 5 5 5 5 5 Final Carried 4 | 2 2 4 4 1 Class Distribution -------------------- 87% | Mutant 12% | Scavenger-Mutant Dominant Class ---------------- Mutant | -10/Materials Mutant | -10/Mines Mutant | -10/Exiles Mutant | -9/Mines Resources | -11 -10 -10 -10 -9 ----------- Run | Yrd Mat Min Exi Min Matter Collected 346 | 229 . 23 . 94 Remotely . | . . . . . Salvage Created 177 | . . 23 . 154 Parts 19 | . . 2 . 17 Haulers Intercepted . | . . . . . Recyclers Shooed 1 | . . 1 . . Parts Field Recycled . | . . . . . Retrieved Matter . | . . . . . Parts Self-Destructed . | . . . . . Prevented . | . . . . . Kills | -11 -10 -10 -10 -9 ------- Run | Yrd Mat Min Exi Min Combat Hostiles Destroyed 9 | . . 2 . 7 Guns 7 | . . 2 . 5 AOE 2 | . . . . 2 Classes Destroyed 3 | . . 1 . 2 Tunneler 1 | . . . . 1 Swarmer 5 | . . 2 . 3 Grunt 4 | . . . . 4 Best Kill Streak 3 | . . 1 . 3 Combat Bots Only 3 | . . 1 . 3 Max Kills in Single Turn 2 | . . 1 . 2 Gunslinging . | . . . . . Exploded 2 | . . . . 2 Melee . | . . . . . Uniques/NPCs Destroyed . | . . . . . Combat | -11 -10 -10 -10 -9 -------- Run | Yrd Mat Min Exi Min Hostile Shots Fired 93 | . . 35 . 58 Missed 16 | . . 9 . 7 Damage Taken 1116 | . . 216 . 900 Core 251 | . . 65 . 186 Absorbed by Shields . | . . . . . Core Remaining (%) 100 | 100 . . . . Volleys Fired 43 | . . 12 . 31 Largest 2 | . . 2 . 2 Hottest 80 | . . 60 . 80 Shots Fired 62 | . . 24 . 38 Gun 56 | . . 23 . 33 Cannon . | . . . . . Launcher 6 | . . 1 . 5 Special . | . . . . . Kinetic 14 | . . 12 . 2 Thermal 42 | . . 11 . 31 Explosive 6 | . . 1 . 5 Electromagnetic . | . . . . . Robot Hit Streak 6 | . . 5 . 6 Robot Miss Streak 5 | . . 5 . 3 Penetration Max . | . . . . . Secondary Targets 1 | . . 1 . . Max Gunslinging Chain 1 | . . 1 . . Shots Hit Robots 35 | . . 11 . 24 Core Hits 17 | . . 3 . 14 Critical Kills . | . . . . . Critical Parts Destroyed . | . . . . . Critical Strikes . | . . . . . Melee Attacks . | . . . . . Impact . | . . . . . Slashing . | . . . . . Piercing . | . . . . . Sneak Attacks . | . . . . . Combat Hostiles . | . . . . . Follow-up Attacks . | . . . . . Damage Inflicted 681 | . . 162 . 519 Guns 382 | . . 125 . 257 Cannons . | . . . . . Explosions 299 | . . 37 . 262 Melee . | . . . . . Ramming . | . . . . . Kinetic 84 | . . 71 . 13 Thermal 298 | . . 54 . 244 Explosive 299 | . . 37 . 262 Electromagnetic . | . . . . . Impact . | . . . . . Slashing . | . . . . . Piercing . | . . . . . Highest Corruption 17 | . . . . 17 Average Corruption 17 | . . . . 17 Corruption Purged . | . . . . . Corruption Blocked . | . . . . . Effects 10 | . . . . 10 Message Errors 1 | . . . . 1 Matter Fused 4 | . . . . 4 Heat Flow Errors 1 | . . . . 1 Energy Discharges 1 | . . . . 1 Data Loss (minor) 1 | . . . . 1 Misfires 1 | . . . . 1 Weapon Failures 1 | . . . . 1 Overload Shots . | . . . . . Overflow Damage 5 | . . 4 . 1 Projectiles . | . . . . . Explosions 5 | . . 4 . 1 Melee . | . . . . . Knockbacks . | . . . . . Impact . | . . . . . Kinetic . | . . . . . Secondary . | . . . . . Self-Inflicted Damage 47 | . . . . 47 Shots 1 | . . . . 1 Rammed . | . . . . . Targets Rammed . | . . . . . Kicked . | . . . . . Crushed . | . . . . . Highest Temperature 296 | . . 2 . 296 Average Temperature 136 | . . 2 . 138 Received Heat Transfer 329 | . . 20 . 309 Effects 3 | . . . . 3 Interference 3 | . . . . 3 Siege Activations . | . . . . . Robots Corrupted . | . . . . . Combat Hostiles . | . . . . . Parts Fried . | . . . . . Impact Corruptions . | . . . . . Robots Melted . | . . . . . Combat Hostiles . | . . . . . Parts Melted 1 | . . . . 1 Heat Transferred 675 | . . 125 . 550 Parts Sabotaged . | . . . . . Parts Stolen . | . . . . . Parts Stripped . | . . . . . Power Chain Reactions . | . . . . . Alert | -11 -10 -10 -10 -9 ------- Run | Yrd Mat Min Exi Min Peak Influence 123 | . . 123 . 109 Initial . | . . . . . Average 64 | . . 59 . 94 Maximum Alert Level . | . . . . . Low Security (%) 100 | 100 100 100 . 100 Level 1 . | . . . . . Level 2 . | . . . . . Level 3 . | . . . . . Level 4 . | . . . . . Level 5 . | . . . . . High Security . | . . . . . Max Security . | . . . . . Squads Dispatched . | . . . . . Investigation . | . . . . . Extermination . | . . . . . Reinforcement . | . . . . . Assault . | . . . . . Garrison . | . . . . . Intercept . | . . . . . Searches Triggered . | . . . . . Construction Impeded . | . . . . . Haulers Reinforced . | . . . . . Active Scanning Responses . | . . . . . Cargo Convoy Interrupts . | . . . . . Stealth | -11 -10 -10 -10 -9 --------- Run | Yrd Mat Min Exi Min Distress Signals . | . . . . . Communications Jammed . | . . . . . Distress Signals . | . . . . . Times Spotted 15 | . . 6 . 9 Peak Tracking Total 16 | . . 16 . 3 Tactical Retreats 4 | . . 4 . . Traps | -11 -10 -10 -10 -9 ------- Run | Yrd Mat Min Exi Min Traps Triggered . | . . . . . Indirectly . | . . . . . Trap Hack Attempts . | . . . . . Triggered . | . . . . . Disarmed . | . . . . . Reprogrammed . | . . . . . Reused . | . . . . . Traps Extracted . | . . . . . Installed . | . . . . . Triggered . | . . . . . Machines | -11 -10 -10 -10 -9 ---------- Run | Yrd Mat Min Exi Min Machines Disabled 1 | . . . . 1 Max in Single Turn 1 | . . . . 1 Machines Repaired . | . . . . . Machines Dismantled . | . . . . . Machines Sabotaged . | . . . . . Overloaded Fab Kills . | . . . . . Hacking | -11 -10 -10 -10 -9 --------- Run | Yrd Mat Min Exi Min Machines Accessed . | . . . . . Terminals . | . . . . . Fabricators . | . . . . . Repair Stations . | . . . . . Recycling Units . | . . . . . Scanalyzers . | . . . . . Garrison Access . | . . . . . Total Hacks . | . . . . . Successful . | . . . . . Failed . | . . . . . Catastrophic . | . . . . . Database Lockouts . | . . . . . Manual . | . . . . . Terminals . | . . . . . Fabricators . | . . . . . Repair Stations . | . . . . . Recycling Units . | . . . . . Scanalyzers . | . . . . . Garrison Access . | . . . . . Terminal Hacks . | . . . . . Fabricator Hacks . | . . . . . Repair Station Hacks . | . . . . . Recycling Unit Hacks . | . . . . . Scanalyzer . | . . . . . Garrison Access Hacks . | . . . . . Unauthorized Hacks . | . . . . . Terminals . | . . . . . Fabricators . | . . . . . Repair Stations . | . . . . . Recycling Units . | . . . . . Scanalyzers . | . . . . . Garrison Access . | . . . . . Data Cores Recovered . | . . . . . Used . | . . . . . Hacking Detections . | . . . . . Full Trace Events . | . . . . . Feedback Events . | . . . . . Feedback Blocked . | . . . . . Robot Schematics Acquired . | . . . . . Robots Built . | . . . . . Authchips . | . . . . . Time . | . . . . . Total Robot Build Rating . | . . . . . Part Schematics Acquired . | . . . . . Parts Built . | . . . . . Authchips . | . . . . . Time . | . . . . . Total Part Build Rating . | . . . . . Parts Repaired . | . . . . . Time . | . . . . . Parts Recycled . | . . . . . Recycled Matter . | . . . . . Retrieved Matter . | . . . . . Retrieved Components . | . . . . . Parts Scanalyzed . | . . . . . Part Schematics Acquired . | . . . . . Parts Damaged . | . . . . . Bothacking | -11 -10 -10 -10 -9 ------------ Run | Yrd Mat Min Exi Min Used RIF Installer . | . . . . . Robots Hacked . | . . . . . Non-combat . | . . . . . Combat . | . . . . . Robot Hacks Applied . | . . . . . Relay Couplers Released . | . . . . . Fabnet Peak Effective % . | . . . . . Robots Rewired . | . . . . . Allies Hacked . | . . . . . Hacks Repelled . | . . . . . Allies | -11 -10 -10 -10 -9 -------- Run | Yrd Mat Min Exi Min Total Allies . | . . . . . Largest Group . | . . . . . Highest-Rated Group . | . . . . . Highest-Rated Ally . | . . . . . Total Orders . | . . . . . Ally Attacks . | . . . . . Total Damage . | . . . . . Kills . | . . . . . Allies Corrupted . | . . . . . Allies Melted . | . . . . . Intel | -11 -10 -10 -10 -9 ------- Run | Yrd Mat Min Exi Min Robot Analysis Total . | . . . . . Derelict Logs Recovered 2 | . . 1 . 1 Drone Launches . | . . . . . Drone Recoveries . | . . . . . Exploration | -11 -10 -10 -10 -9 ------------- Run | Yrd Mat Min Exi Min Turns Passed 692 | 68 30 285 47 262 Spaces Moved 463 | 55 26 199 40 143 Core 18 | 9 . . . 9 Treads . | . . . . . Legs 437 | 46 26 199 40 126 Wheels . | . . . . . Hover . | . . . . . Flight 8 | . . . . 8 Fastest Speed 50 | 50 120 120 120 50 Average Speed 117 | 108 120 120 120 115 Slowest Speed 120 | 120 120 120 120 120 Overloaded Moves . | . . . . . Propulsion Burnouts . | . . . . . Robots Hopped . | . . . . . Cave-ins Triggered 1 | . . . . 1 Exploration Rate (%) 15 | 4 9 44 8 13 Regions Visited 4 Branch Regions 3 Pre-discovered Areas 2 | . . 1 . 1 Known Exits Taken . | . . . . . Unknown Exits Taken 4 | 1 1 1 1 . Scrap Searched . | . . . . . Spaces Dug . | . . . . . Terrain Destroyed 50 | . . 14 . 36 Melee . | . . . . . Projectile . | . . . . . AOE 50 | . . 14 . 36 Terrain Rammed . | . . . . . Walls Destroyed . | . . . . . Machines Disabled . | . . . . . Actions | -11 -10 -10 -10 -9 --------- Run | Yrd Mat Min Exi Min Total 546 | 61 25 221 39 200 Wait 24 | . . 7 . 17 Move 459 | 54 25 198 39 143 Hop . | . . . . . Pick Up 5 | 2 . 2 . 1 Fast Attach 9 | 5 . . . 4 Attach 5 | . . 1 . 4 Detach 1 | . . 1 . . Swap . | . . . . . Drop . | . . . . . Fire 43 | . . 12 . 31 Melee . | . . . . . Ram . | . . . . . Kick . | . . . . . Crush . | . . . . . Escape Stasis . | . . . . . Rewire . | . . . . . Trap . | . . . . . Miscellaneous . | . . . . . Route ------- -11/Scrapyard -10/Materials -10/Mines -10/Exiles -9/Mines History --------- Turn | Location | Event 5 | -11/Scrapyard | Discovered new exit (range 16) 69 | -11/Scrapyard | Entered Materials 85 | -10/Materials | Discovered new exit (range 5) 99 | -10/Materials | Entered Mines 145 | -10/Mines | Assembled infested the area 256 | -10/Mines | Learned location of Zion (-7) 281 | -10/Mines | Deemed a non-threat by the Exiles lab entrance 281 | -10/Mines | Discovered new exit (range 5) 313 | -10/Mines | Received a Rocket Launcher from a helpful Derelict 317 | -10/Mines | Build established: Mutant 384 | -10/Mines | Entered Exiles 405 | -10/Exiles | Discovered new exit (range 15) 431 | -10/Exiles | Entered Mines 458 | -9/Mines | Learned location of Storage (-9) 512 | -9/Mines | Crushed by falling debris 512 | -9/Mines | System corruption reached 10% 533 | -9/Mines | Core integrity fell below 50% 591 | -9/Mines | Lost 7 parts (2p3n2w) 684 | -9/Mines | Core integrity fell below 20% 693 | -9/Mines | Destroyed by G-47 Trooper with Particle Gun Last Messages --------------- 00592_ The unstable cave ceiling collapses. 00599_ System corrupted: Component data lost. 00617_ K-01 Serf collects debris. 00619_ System corrupted: Matter fused (-7). 00623_ K-01 Serf collects debris. 00646_ Sml. Laser destroyed. 00646_ Critical hit (Burn: +37). 00648_ Seismic Detector destroyed. 00649_ K-01 Serf collects debris. 00658_ System corrupted: Heat flow error (+247). 00660_ Overheating: System interference. 00660_ Sml. Laser temporarily disabled. 00670_ G-34 Mercenary destroyed. 00670_ R-06 Scavenger collects Sml. Laser. 00673_ R-06 Scavenger collects Ion Engine. 00675_ System corrupted: Matter fused (-5). 00677_ Overheating: System interference. 00677_ Sml. Laser temporarily disabled. 00679_ Ion Engine destroyed. 00683_ R-06 Scavenger collects Heat Sink. Map ----- +----------------------------------------------------+ | | | | | | | | | | | ?????????????????????????????????????? | | ?????????????????????????????????????? | | ?????????????????????????????###?????? | | ???????????????????????????### #####?? | | ?????????????????????????### #?? | | ??????????????? ???????## #?? | | ??????????????? ??????## # #?? | | ??????????????? ?###### # #?? | | ??????????????? ?# #?? | | ??????????????? ?# ### #?? | | ?????????????## ?# #?# " #?? | | ?????????????# ?# #?# # "" #?? | | ?????????????# ?# #?##### #?? | | ?????????????# #?# #????## # #####?? | | ?????????????# #?# #????## ###?????? | | ?????????????# #?# #?????####???????? | | ?????????????# #?# #????????????????? | | ?????????????# #?# #???????####?????? | | ?????????????# #?# ######## #?????? | | ?????????????# ### ## ## #?????? | | ?????????????# r tg @ #??????? | | ?????????????# #####g ##??????? | | ?????????????# #???## #???????? | | ?????????????# #????## ##???????? | | ?????????????# #?????## ##????????? | | ?????????????# #??????#####?????????? | | ?????????????# #????????????????????? | | ?????????????# #????????????????????? | | ?????????????# #????????????????????? | | ????????????? ?????????????????????? | | ????????????? ?????????????????????? | | ????????????? ?????????????????????? | | ????????????? ?????????????????????? | | ????????????? ?????????????????????? | | ????????????? ?????????????????????? | | ????????????? ?????????????????????? | | ?????????????????????????????????????? | | ?????????????????????????????????????? | | ?????????????????????????????????????? | | ?????????????????????????????????????? | | ?????????????????????????????????????? | | ?????????????????????????????????????? | | ?????????????????????????????????????? | | ?????????????????????????????????????? | | ?????????????????????????????????????? | +----------------------------------------------------+ Best States ------------- Heat Dissipation 25 Energy Generation 10 Energy Capacity 250 Matter Stores 279 Matter Capacity 300 Sight Range 16 Terrain Scan Density 10 Evasion (%) 55 Item Schematics ----------------- None Robot Schematics ------------------ None Fabricated ------------ Nothing Alien Tech Used ----------------- None Achievements -------------- I Survived The Infestation Slippery One Unlikely Earthworm Challenges ------------ None Game ------ Seed GravityTacticalInterrupter Manual? 0 Play Time 00:11:42 Cumulative 7.5 hours Start 2024.10.18 @ 16:38:32 End 2024.10.18 @ 16:49:23 Sessions 1 Manual Loads 0 Difficulty Rogue Special Mode None Game No. 12 Rogue 12 Adventurer 0 Explorer 0 Win Type - Total 0 Types 0/0/0/0/0/0/0/0/0 Lore% 2 Gallery% 10 Achievement% 10 Wizard Run 0 Options --------- Layout 1 ASCII 0 Keyboard 1 Movement Numpad Keybinds 0 Fullscreen 1 Font 24/Smallcaps Map View 50x35 Zoom Use 0% Tactical HUD 1 Map Filters NONE Filters NONE Steam 1 RUN: da5ef842-1a6f-4aac-a129-6962e5ac9ee0